bitfinex/quotes_BTCUSD_20250826
["timestamp","ask_amount","ask_price","bid_price","bid_amount"]
[1756208627886,0.81951077,109870.0,109860.0,0.11391104]
[1756208628079,2.09327293,109870.0,109860.0,0.005]
[1756208628694,1.48526831,109870.0,109860.0,0.002]
[1756208628896,0.18204988,109860.0,109850.0,0.01744902]
[1756208629173,0.9484345,109860.0,109850.0,0.10891104]
[1756208629534,1.58586712,109860.0,109850.0,0.10891104]
[1756208630192,1.58586712,109860.0,109850.0,0.11191104]
[1756208630361,1.58586712,109860.0,109850.0,0.10991104]
[1756208630781,1.58586712,109860.0,109850.0,0.10891104]
[1756208631358,0.9778625,109860.0,109850.0,0.10891104]
[1756208631752,0.9778625,109860.0,109850.0,0.10991104]
[1756208632902,7.14507666,109860.0,109850.0,0.001]
[1756208633949,7.14607666,109860.0,109850.0,0.001]
[1756208634788,7.14607666,109860.0,109840.0,0.0002]
[1756208634789,0.18206645,109850.0,109840.0,0.0002]
[1756208635001,6.56996115,109850.0,109840.0,0.0002]
[1756208635207,1.43824915,109850.0,109840.0,0.0002]
[1756208635420,1.59340915,109850.0,109840.0,0.0002]
[1756208635634,1.61105815,109850.0,109840.0,0.0002]
[1756208636256,1.61105815,109850.0,109840.0,0.0012]
[1756208637692,0.28208302,109840.0,109830.0,1e-08]
[1756208637902,7.27557296,109840.0,109830.0,1e-08]
[1756208638108,7.28085296,109840.0,109830.0,1e-08]
[1756208638322,6.67284834,109840.0,109830.0,1e-08]
[1756208638739,6.70537028,109840.0,109830.0,1e-08]
[1756208638948,6.70537028,109840.0,109830.0,0.00200001]
[1756208639156,6.72281928,109840.0,109830.0,1e-08]
[1756208639565,6.72381928,109840.0,109830.0,0.00100001]
[1756208639973,6.56865928,109840.0,109830.0,1e-08]
[1756208640178,6.72481928,109840.0,109830.0,1e-08]
[1756208640408,6.50465326,109840.0,109830.0,1e-08]
[1756208640622,2.01270126,109840.0,109830.0,0.11401105]
[1756208641030,2.01798126,109840.0,109830.0,0.11094105]
[1756208641208,2.01798126,109840.0,109830.0,0.10891105]
[1756208641451,2.0272883,109840.0,109830.0,0.01744903]
[1756208641662,2.0272883,109840.0,109830.0,1e-08]
[1756208642298,1.8721283,109840.0,109830.0,1e-08]
[1756208642500,2.0272883,109840.0,109830.0,1e-08]
[1756208642921,1.8721283,109840.0,109830.0,1e-08]
[1756208643096,2.0272883,109840.0,109830.0,1e-08]
[1756208643509,1.8721283,109840.0,109830.0,1e-08]
[1756208643712,2.0272883,109840.0,109830.0,1e-08]
[1756208643919,1.9272883,109840.0,109830.0,1e-08]
[1756208644094,2.0272883,109840.0,109830.0,1e-08]
[1756208645286,1.8721283,109840.0,109830.0,1e-08]
[1756208645493,2.0272883,109840.0,109830.0,1e-08]
[1756208646765,1.8721283,109840.0,109830.0,1e-08]
[1756208646961,2.0272883,109840.0,109830.0,1e-08]
[1756208648140,1.8721283,109840.0,109830.0,1e-08]
[1756208648337,2.0272883,109840.0,109830.0,1e-08]
[1756208648587,1.8721283,109840.0,109830.0,1e-08]
[1756208648746,2.0240683,109840.0,109830.0,0.00203001]
[1756208649136,2.0272883,109840.0,109830.0,0.00203001]
[1756208649989,2.0272883,109840.0,109830.0,1e-08]
[1756208650189,1.8721283,109840.0,109830.0,1e-08]
[1756208650418,2.0272883,109840.0,109830.0,1e-08]
[1756208651875,2.0272483,109840.0,109830.0,1e-08]
[1756208652295,1.8721283,109840.0,109830.0,1e-08]
[1756208652428,2.0272483,109840.0,109830.0,1e-08]
[1756208652903,1.8721283,109840.0,109830.0,1e-08]
[1756208653159,2.0272483,109840.0,109830.0,1e-08]
[1756208654190,1.8721283,109840.0,109830.0,1e-08]
[1756208654495,2.0272483,109840.0,109830.0,1e-08]
[1756208656465,2.0272483,109840.0,109830.0,0.00203001]
[1756208657497,2.04666861,109840.0,109830.0,0.00203001]
[1756208657938,2.04666861,109840.0,109830.0,1e-08]
[1756208660562,2.03736157,109840.0,109830.0,1e-08]
[1756208662246,1.85291022,109840.0,109830.0,1e-08]
[1756208662430,2.03499324,109840.0,109830.0,1e-08]
[1756208662917,2.03177324,109840.0,109830.0,0.00203001]
[1756208663136,2.03495324,109840.0,109830.0,1e-08]
[1756208663540,2.05185326,109840.0,109830.0,1e-08]
[1756208668138,2.03495324,109840.0,109830.0,1e-08]
[1756208670842,1.42162862,109840.0,109830.0,0.00514001]
[1756208671013,1.42373862,109840.0,109830.0,0.00514001]
[1756208671437,1.42373862,109840.0,109830.0,0.00203001]
[1756208671640,1.42691862,109840.0,109830.0,0.00203001]
[1756208672847,1.27187862,109840.0,109830.0,0.00203001]
[1756208673053,1.40220831,109840.0,109830.0,0.11405105]
[1756208673282,1.419323,109840.0,109830.0,0.11405105]
[1756208674366,1.24716831,109840.0,109830.0,0.11405105]
[1756208674576,0.28408302,109840.0,109830.0,0.29842689]
[1756208674783,0.43912302,109840.0,109830.0,0.29615065]
[1756208677712,0.33908302,109840.0,109830.0,0.29615065]
[1756208678319,0.18408302,109840.0,109830.0,0.29615065]
[1756208679291,0.002,109840.0,109830.0,0.29615065]
[1756208679698,0.18408302,109840.0,109830.0,0.29615065]
[1756208681452,0.157,109840.0,109830.0,0.29615065]
[1756208681718,0.33908302,109840.0,109830.0,0.29615065]
[1756208681860,0.002,109840.0,109830.0,0.29615065]
[1756208682058,0.18408302,109840.0,109830.0,0.29615065]
[1756208682711,0.18408302,109840.0,109830.0,0.29619065]
[1756208684293,0.002,109840.0,109830.0,0.90419527]
[1756208685044,0.001,109840.0,109830.0,0.90419527]
[1756208685250,0.15496,109850.0,109840.0,0.18208302]
[1756208685467,1.42148599,109860.0,109850.0,0.01744902]
[1756208685667,1.16865599,109860.0,109850.0,0.29301749]
[1756208685877,1.16865599,109860.0,109850.0,0.29603749]
[1756208685878,0.44611237,109860.0,109850.0,0.29603749]
[1756208686764,0.43700988,109860.0,109850.0,0.29603749]
[1756208686944,0.43800988,109860.0,109850.0,0.29603749]
[1756208687294,0.43900988,109860.0,109850.0,0.29603749]
[1756208688121,0.33900988,109860.0,109850.0,0.29603749]
[1756208688622,1.0481445,109860.0,109850.0,0.29301749]
[1756208689149,1.0481445,109860.0,109850.0,0.29603749]
[1756208689367,1.0471445,109860.0,109850.0,0.29603749]
[1756208689572,1.0471445,109860.0,109850.0,0.29301749]
[1756208693127,1.0471445,109860.0,109850.0,0.29603749]
[1756208693330,0.9471445,109860.0,109850.0,0.29603749]
[1756208693961,0.7921845,109860.0,109850.0,0.29603749]
[1756208694185,0.33696988,109860.0,109850.0,0.29603749]
[1756208694399,0.9449745,109860.0,109850.0,0.29603749]
[1756208694817,0.33696988,109860.0,109850.0,0.29603749]
[1756208695476,0.33696988,109860.0,109850.0,0.29803749]
[1756208695688,0.18204988,109860.0,109850.0,0.29803749]
[1756208695896,0.18204988,109860.0,109850.0,0.29903749]
[1756208697514,1.26973543,109870.0,109850.0,0.29903749]
[1756208697752,1.42461543,109870.0,109860.0,0.10891104]
[1756208697942,1.42674543,109870.0,109860.0,0.10891104]
[1756208699638,1.42674543,109870.0,109860.0,0.11095104]
[1756208699856,1.42674543,109870.0,109860.0,0.10891104]
[1756208700087,1.27186543,109870.0,109860.0,0.10891104]
[1756208700325,1.05937743,109870.0,109860.0,0.10891104]
[1756208700580,1.04709577,109870.0,109860.0,0.29300092]
[1756208701576,1.05027577,109870.0,109860.0,0.29300092]
[1756208701794,0.94709577,109870.0,109860.0,0.29602092]
[1756208701997,0.79221577,109870.0,109860.0,0.29602092]
[1756208702399,0.94492577,109870.0,109860.0,0.29602092]
[1756208702687,0.94705577,109870.0,109860.0,0.29602092]
[1756208703315,1.04705577,109870.0,109860.0,0.29300092]
[1756208703518,1.05023577,109870.0,109860.0,0.29300092]
[1756208704101,1.05023577,109870.0,109860.0,0.11095104]
[1756208704292,1.05023577,109870.0,109860.0,0.10891104]
[1756208705130,1.05023577,109870.0,109860.0,0.29096092]
[1756208705778,0.95023577,109870.0,109860.0,0.29096092]
[1756208705978,1.05023577,109870.0,109860.0,0.29096092]
[1756208706308,0.95023577,109870.0,109860.0,0.29096092]
[1756208706510,1.05023577,109870.0,109860.0,0.29300092]
[1756208708403,1.07760177,109870.0,109860.0,0.29300092]
[1756208708807,0.97760177,109870.0,109860.0,0.29300092]
[1756208709240,0.36959715,109870.0,109860.0,0.29300092]
[1756208709386,0.97760177,109870.0,109860.0,0.29300092]
[1756208709840,1.07760177,109870.0,109860.0,0.29300092]
[1756208710552,1.07756177,109870.0,109860.0,0.29300092]
[1756208711359,0.97756177,109870.0,109860.0,0.29300092]
[1756208713772,0.97438177,109870.0,109860.0,0.29300092]
[1756208713980,1.07438177,109870.0,109860.0,0.29300092]
[1756208714187,1.07762177,109870.0,109860.0,0.26575104]
[1756208714633,1.07762177,109870.0,109860.0,0.26371104]
[1756208715597,1.07762177,109870.0,109860.0,0.10891104]
[1756208715796,1.07762177,109870.0,109860.0,0.11118666]
[1756208716014,1.07762177,109870.0,109860.0,0.29323654]
[1756208716244,0.02741384,109870.0,109860.0,0.90385554]
[1756208716434,4.784e-05,109870.0,109860.0,0.90385554]
[1756208717270,4.784e-05,109870.0,109860.0,1.30385554]
[1756208717470,4.784e-05,109870.0,109860.0,1.33121554]
[1756208717726,4.784e-05,109870.0,109860.0,0.72321092]
[1756208717959,4.784e-05,109870.0,109860.0,0.87797092]
[1756208718295,4.784e-05,109870.0,109860.0,0.87997092]
[1756208719321,4.784e-05,109870.0,109860.0,0.88297092]
[1756208720484,4.784e-05,109870.0,109860.0,0.88293092]
[1756208721653,4.784e-05,109870.0,109860.0,1.49093554]
[1756208723015,4.784e-05,109870.0,109860.0,1.75963554]
[1756208727907,4.784e-05,109870.0,109860.0,1.75959554]
[1756208730406,4.784e-05,109870.0,109860.0,1.60491554]
[1756208730750,4.784e-05,109870.0,109860.0,1.75959554]
[1756208731133,4.784e-05,109870.0,109860.0,1.60491554]
[1756208731342,4.784e-05,109870.0,109860.0,1.75959554]
[1756208733335,4.784e-05,109870.0,109860.0,1.60491554]
[1756208733540,4.784e-05,109870.0,109860.0,1.75955554]
[1756208735585,4.784e-05,109870.0,109860.0,1.49085554]
[1756208737669,0.416494,109890.0,109880.0,0.19946576]
[1756208737915,0.0021,109890.0,109880.0,0.44556778]
[1756208738168,0.61010462,109890.0,109880.0,0.44556778]
[1756208738662,0.127358,109900.0,109890.0,0.18200018]
[1756208738931,0.0021,109900.0,109890.0,1.05355584]
[1756208739138,0.0021,109900.0,109890.0,0.44555122]
[1756208739341,0.0021,109900.0,109890.0,0.45044122]
[1756208739519,0.0021,109900.0,109890.0,0.47779622]
[1756208740364,0.0021,109900.0,109890.0,0.47979622]
[1756208740517,0.0021,109900.0,109890.0,0.52070107]
[1756208740737,0.0021,109900.0,109890.0,0.52170107]
[1756208742799,0.10272,109910.0,109900.0,0.18198362]
[1756208743015,0.1,109910.0,109900.0,0.42804564]
[1756208743253,1.28487063,109920.0,109910.0,0.19941608]
[1756208743470,1.24226687,109920.0,109910.0,0.2908781]
[1756208743671,1.24413687,109920.0,109910.0,0.2908781]
[1756208743850,1.27149087,109920.0,109910.0,0.4454781]
[1756208744286,1.27149087,109920.0,109910.0,0.4444781]
[1756208744500,1.27149087,109920.0,109910.0,0.26351104]
[1756208745058,1.27349087,109920.0,109910.0,0.26351104]
[1756208745858,1.27349087,109920.0,109910.0,0.4454381]
[1756208745859,0.03336774,109920.0,109910.0,0.4454381]
[1756208746085,0.03336774,109920.0,109910.0,0.4505481]
[1756208746503,0.00601374,109920.0,109910.0,0.4505481]
[1756208746719,0.00201374,109920.0,109910.0,0.4454381]
[1756208746937,0.00201374,109920.0,109910.0,0.10891104]
[1756208746938,0.89491886,109920.0,109910.0,0.10891104]
[1756208747137,0.89491886,109920.0,109910.0,0.26447104]
[1756208748467,1.04947886,109920.0,109910.0,0.10991104]
[1756208748711,1.07683286,109920.0,109910.0,0.10991104]
[1756208749569,1.07683286,109920.0,109910.0,0.10891104]
[1756208750221,1.07783286,109920.0,109910.0,0.10891104]
[1756208752362,0.46982824,109920.0,109910.0,0.10891104]
[1756208752525,1.07783286,109920.0,109910.0,0.10891104]
[1756208754402,1.07779286,109920.0,109910.0,0.10891104]
[1756208755592,1.41779286,109920.0,109910.0,0.10891104]
[1756208756237,0.18198362,109900.0,109890.0,0.18725184]
[1756208756484,0.79186824,109900.0,109890.0,0.37763288]
[1756208756841,0.21121962,109900.0,109890.0,0.37763288]
[1756208757449,0.21121962,109900.0,109890.0,0.56674306]
[1756208757902,0.21121962,109900.0,109890.0,0.38474288]
[1756208758107,0.21121962,109900.0,109890.0,0.31144589]
[1756208758740,0.21121962,109900.0,109890.0,0.31344589]
[1756208759442,0.21121962,109900.0,109890.0,0.11802104]
[1756208759574,0.21121962,109900.0,109890.0,0.27250104]
[1756208759972,0.21121962,109900.0,109890.0,0.11291104]
[1756208760199,0.91922424,109900.0,109890.0,0.11291104]
[1756208760370,1.07664424,109900.0,109890.0,0.11291104]
[1756208761923,1.07664424,109900.0,109890.0,0.11091104]
[1756208762129,1.07764424,109900.0,109890.0,0.10891104]
[1756208762337,0.18201674,109880.0,109870.0,0.14634699]
[1756208762546,0.18201674,109880.0,109870.0,0.39228901]
[1756208762777,0.18201674,109880.0,109870.0,0.39434901]
[1756208762980,0.21126874,109880.0,109870.0,0.41179803]
[1756208763192,0.21126874,109880.0,109870.0,0.39434901]
[1756208763525,0.21126874,109880.0,109870.0,0.41179803]
[1756208763799,0.21126874,109880.0,109870.0,0.19131803]
[1756208764005,0.22691163,109880.0,109870.0,0.26739104]
[1756208764353,0.21126874,109880.0,109870.0,0.26945104]
[1756208764553,0.21126874,109880.0,109870.0,0.27250104]
[1756208765374,0.91927336,109880.0,109870.0,0.26739104]
[1756208765576,0.92220336,109880.0,109870.0,0.26739104]
[1756208765981,0.91927336,109880.0,109870.0,0.26539104]
[1756208766185,0.91927336,109880.0,109870.0,0.26339104]
[1756208766410,0.92027336,109880.0,109870.0,0.26339104]
[1756208766810,1.07768336,109880.0,109870.0,0.09146202]
[1756208767021,1.41768336,109880.0,109870.0,0.09146202]
[1756208767254,1.43332319,109880.0,109870.0,0.09146202]
[1756208767425,1.43332319,109880.0,109870.0,0.10891104]
[1756208767577,0.82531857,109880.0,109870.0,0.10891104]
[1756208767998,1.43332319,109880.0,109870.0,0.10891104]
[1756208771508,1.43332319,109880.0,109850.0,0.07305]
[1756208771509,0.28204988,109860.0,109850.0,0.22753]
[1756208771724,0.28204988,109860.0,109850.0,0.2665842]
[1756208771725,0.8900545,109860.0,109850.0,0.2665842]
[1756208771942,1.0464345,109860.0,109850.0,0.1121042]
[1756208772157,1.0738015,109860.0,109850.0,0.1121042]
[1756208772371,1.0738015,109860.0,109850.0,0.1142542]
[1756208772754,1.0738015,109860.0,109850.0,0.1162542]
[1756208772974,1.4138015,109860.0,109850.0,0.09360518]
[1756208773202,1.4138015,109860.0,109850.0,0.09560518]
[1756208773420,1.4138015,109860.0,109850.0,0.1130542]
[1756208773992,1.4167215,109860.0,109850.0,0.1130542]
[1756208774207,1.4167215,109860.0,109850.0,0.00214316]
[1756208774438,1.4167215,109860.0,109850.0,0.00014316]
[1756208774654,1.4167215,109860.0,109850.0,0.00114316]
[1756208774857,1.4167215,109860.0,109850.0,0.00214316]
[1756208775059,1.4167215,109860.0,109850.0,0.00014316]
[1756208775467,1.4177215,109860.0,109850.0,0.00014316]
[1756208776273,1.2632415,109860.0,109850.0,0.00014316]
[1756208776487,1.4177215,109860.0,109850.0,0.00014316]
[1756208777319,1.38608701,109860.0,109850.0,0.00014316]
[1756208779808,1.38608701,109860.0,109850.0,1e-08]
[1756208780036,1.41652562,109860.0,109850.0,1e-08]
[1756208781195,1.41552562,109860.0,109850.0,1e-08]
[1756208781419,1.41652562,109860.0,109850.0,1e-08]
[1756208781631,1.41852562,109860.0,109850.0,1e-08]
[1756208781851,1.41752562,109860.0,109850.0,1e-08]
[1756208782070,1.41852562,109860.0,109850.0,1e-08]
[1756208782517,1.44839906,109860.0,109850.0,1e-08]
[1756208782767,6.43023106,109860.0,109850.0,1e-08]
[1756208782978,6.42601568,109860.0,109850.0,1e-08]
[1756208783414,6.36570363,109860.0,109850.0,1e-08]
[1756208788050,6.38506443,109860.0,109850.0,1e-08]
[1756208788926,6.41550304,109860.0,109850.0,1e-08]
[1756208791349,6.50694833,109860.0,109850.0,1e-08]
[1756208791587,6.28797648,109860.0,109850.0,1e-08]
[1756208791820,6.38020443,109860.0,109850.0,0.00532001]
[1756208792027,1.39837243,109860.0,109850.0,0.00532001]
[1756208792244,1.37901163,109860.0,109850.0,0.00532001]
[1756208793150,1.39840119,109860.0,109850.0,0.00532001]
[1756208793361,1.24396119,109860.0,109850.0,0.00532001]
[1756208793568,1.39840119,109860.0,109850.0,0.00532001]
[1756208793780,1.40027119,109860.0,109850.0,0.00532001]
[1756208793989,1.40027119,109860.0,109850.0,1e-08]
[1756208797415,6.46960751,109860.0,109850.0,1e-08]
[1756208797855,6.50203464,109860.0,109850.0,1e-08]
[1756208798540,6.47779237,109860.0,109850.0,1e-08]
[1756208800545,6.52643307,109860.0,109850.0,1e-08]
[1756208801054,6.49655963,109860.0,109850.0,1e-08]
[1756208801286,6.52821743,109860.0,109850.0,1e-08]
[1756208801508,6.34333882,109860.0,109850.0,1e-08]
[1756208801649,6.4745231,109860.0,109850.0,1e-08]
[1756208801858,0.18206645,109850.0,109840.0,0.00243559]
[1756208802061,0.18206645,109850.0,109840.0,0.00248343]
[1756208802062,6.04004707,109850.0,109840.0,0.00248343]
[1756208802327,6.04204707,109850.0,109840.0,4.784e-05]
[1756208802481,6.06742207,109850.0,109840.0,0.00205784]
[1756208803115,5.45941745,109850.0,109840.0,0.00205784]
[1756208803325,5.91302207,109850.0,109840.0,0.00205784]
[1756208803538,6.06742207,109850.0,109840.0,0.00205784]
[1756208803923,6.06742207,109850.0,109840.0,0.00510784]
[1756208804145,6.06942207,109850.0,109840.0,0.00510784]
[1756208804350,5.91302207,109850.0,109840.0,0.00510784]
[1756208804558,6.06742207,109850.0,109840.0,0.00510784]
[1756208805739,6.06942207,109850.0,109840.0,0.00510784]
[1756208806769,6.06742207,109850.0,109840.0,0.00510784]
[1756208807907,6.06942207,109850.0,109840.0,0.00510784]
[1756208808086,6.06742207,109850.0,109840.0,0.00510784]
[1756208808502,1.08559007,109850.0,109840.0,0.00510784]
[1756208809358,1.06127563,109850.0,109840.0,0.00510784]
[1756208809981,1.06137153,109850.0,109840.0,0.00510784]
[1756208810196,1.06337153,109850.0,109840.0,0.00510784]
[1756208810409,1.08772836,109850.0,109840.0,4.784e-05]
[1756208810994,1.06337153,109850.0,109840.0,0.00205784]
[1756208811199,1.06337153,109850.0,109840.0,4.784e-05]
[1756208812006,1.06635153,109850.0,109840.0,4.784e-05]
[1756208813023,1.06337153,109850.0,109840.0,4.784e-05]
[1756208813259,1.06137153,109850.0,109840.0,0.00510784]
[1756208813908,1.06337153,109850.0,109840.0,0.00510784]
[1756208814386,0.45332691,109850.0,109840.0,0.00510784]
[1756208814616,0.90697153,109850.0,109840.0,0.00510784]
[1756208815063,1.06133153,109850.0,109840.0,0.00510784]
[1756208815270,0.45332691,109850.0,109840.0,0.00510784]
[1756208815477,1.06133153,109850.0,109840.0,0.00510784]
[1756208815889,1.06333153,109850.0,109840.0,0.00510784]
[1756208816316,1.04384607,109850.0,109840.0,0.00460784]
[1756208817357,1.04384607,109850.0,109840.0,0.00155784]
[1756208817763,1.04384607,109850.0,109840.0,0.00460784]
[1756208819186,1.04184607,109850.0,109840.0,0.00460784]
[1756208819932,1.04384607,109850.0,109840.0,0.00460784]
[1756208820352,0.52208302,109840.0,109830.0,0.02053903]
[1756208820567,1.28444764,109840.0,109830.0,0.11200105]
[1756208820786,1.28444764,109840.0,109830.0,0.11401105]
[1756208821215,1.31182264,109840.0,109830.0,0.11401105]
[1756208821617,1.31182264,109840.0,109830.0,0.11501105]
[1756208822447,1.31182264,109840.0,109830.0,0.11601105]
[1756208823027,1.31382264,109840.0,109830.0,0.11095105]
[1756208823231,1.31382264,109840.0,109830.0,0.00204001]
[1756208823232,1.98597739,109840.0,109830.0,0.00204001]
[1756208823453,1.37797277,109840.0,109830.0,0.00204001]
[1756208823862,1.37597277,109840.0,109830.0,0.00710001]
[1756208824069,1.22161277,109840.0,109830.0,0.00710001]
[1756208824269,1.37597277,109840.0,109830.0,0.00710001]
[1756208826381,0.76796815,109840.0,109830.0,0.00710001]
[1756208826590,1.37597277,109840.0,109830.0,0.00710001]
[1756208826800,1.37797277,109840.0,109830.0,0.00710001]
[1756208827005,1.37597277,109840.0,109830.0,0.00710001]
[1756208828748,1.37797277,109840.0,109830.0,0.00405001]
[1756208828965,1.37797277,109840.0,109830.0,0.00710001]
[1756208829170,1.38095277,109840.0,109830.0,0.00204001]
[1756208829379,1.37797277,109840.0,109830.0,0.00204001]
[1756208830419,1.38095277,109840.0,109830.0,0.00204001]
[1756208831142,1.37797277,109840.0,109830.0,0.00204001]
[1756208831397,1.37797277,109840.0,109830.0,0.00716001]
[1756208832205,1.37793277,109840.0,109830.0,0.00716001]
[1756208832407,1.37593277,109840.0,109830.0,0.00716001]
[1756208836150,1.37798277,109840.0,109830.0,0.00716001]
[1756208838928,0.76997815,109840.0,109830.0,0.00716001]
[1756208839128,1.37798277,109840.0,109830.0,0.00716001]
[1756208839556,1.37798277,109840.0,109830.0,0.00666001]
[1756208839813,0.61360815,109840.0,109830.0,0.11557105]
[1756208840037,0.76792815,109840.0,109830.0,0.11557105]
[1756208841498,0.36377802,109840.0,109830.0,0.72585191]
[1756208841715,0.27360815,109840.0,109830.0,0.72357567]
[1756208841938,0.20945802,109840.0,109830.0,0.72357567]
[1756208842149,0.27360815,109840.0,109830.0,0.72357567]
[1756208842380,0.27360815,109840.0,109830.0,0.11557105]
[1756208842823,0.27360815,109840.0,109830.0,0.11489916]
[1756208843254,0.27360815,109840.0,109830.0,0.1171754]
[1756208843717,0.20945802,109840.0,109830.0,0.1171754]
[1756208843996,0.20945802,109840.0,109830.0,0.72518002]
[1756208844193,0.27360815,109840.0,109830.0,0.72290378]
[1756208847792,0.27360815,109840.0,109830.0,0.11489916]
[1756208847965,0.27565815,109840.0,109830.0,0.10977916]
[1756208848165,0.88366277,109840.0,109830.0,0.10977916]
[1756208848546,0.36377802,109840.0,109830.0,0.11489916]
[1756208848782,0.42792815,109840.0,109830.0,0.11489916]
[1756208849153,0.42997815,109840.0,109830.0,0.11489916]
[1756208849846,0.43305815,109840.0,109830.0,0.10977916]
[1756208850709,0.42997815,109840.0,109830.0,0.10977916]
[1756208850912,1.03798277,109840.0,109830.0,0.10977916]
[1756208851886,0.42997815,109840.0,109830.0,0.10977916]
[1756208852094,1.03798277,109840.0,109830.0,0.10977916]
[1756208853150,0.42997815,109840.0,109830.0,0.10977916]
[1756208853558,0.27565815,109840.0,109830.0,0.10977916]
[1756208853784,0.42997815,109840.0,109830.0,0.11489916]
[1756208856896,0.27360815,109840.0,109830.0,0.11489916]
[1756208857048,0.42788815,109840.0,109830.0,0.11489916]
[1756208857269,0.42788815,109840.0,109830.0,0.90500338]
[1756208857270,0.20945802,109840.0,109830.0,0.90500338]
[1756208857489,0.27360815,109840.0,109830.0,0.90500338]
[1756208859348,0.27360815,109840.0,109830.0,1.05928338]
[1756208859553,0.27360815,109840.0,109830.0,0.26917916]
[1756208860649,0.27360815,109840.0,109830.0,0.11489916]
[1756208862481,0.27569815,109840.0,109830.0,0.11178916]
[1756208862696,0.27569815,109840.0,109830.0,0.10977916]
[1756208862907,0.42997815,109840.0,109830.0,0.11185916]
[1756208863336,1.04105277,109840.0,109830.0,0.10977916]
[1756208864198,1.03798277,109840.0,109830.0,0.10977916]
[1756208864413,0.42997815,109840.0,109830.0,0.10977916]
[1756208865152,0.36221523,109840.0,109830.0,0.10977916]
[1756208865371,0.38958823,109840.0,109830.0,0.10977916]
[1756208866016,0.99759285,109840.0,109830.0,0.10977916]
[1756208866532,0.38958823,109840.0,109830.0,0.10977916]
[1756208867530,0.39265823,109840.0,109830.0,0.10977916]
[1756208867916,1.00066285,109840.0,109830.0,0.10977916]
[1756208872459,0.38958823,109840.0,109830.0,0.10977916]
[1756208872671,0.99759285,109840.0,109830.0,0.10977916]
[1756208873070,1.00066285,109840.0,109830.0,0.10977916]
[1756208874894,1.34066285,109840.0,109830.0,0.09233014]
[1756208875130,1.34066285,109840.0,109830.0,0.00086812]
[1756208885688,1.23957285,109840.0,109830.0,0.00086812]
[1756208888520,1.24151285,109840.0,109830.0,0.00086812]
[1756208889168,1.27196346,109840.0,109830.0,0.00086812]
[1756208889370,6.18557131,109840.0,109830.0,0.00086812]
[1756208890332,6.18757131,109840.0,109830.0,0.00086812]
[1756208890534,6.79557593,109840.0,109830.0,0.00086812]
[1756208891034,6.79557593,109840.0,109830.0,1e-08]
[1756208891694,0.1820996,109830.0,109820.0,0.0052]
[1756208891895,5.92617622,109830.0,109820.0,0.0052]
[1756208892042,0.94632422,109830.0,109820.0,0.0052]
[1756208892243,0.97370422,109830.0,109820.0,0.0052]
[1756208893862,0.97470422,109830.0,109820.0,0.0052]
[1756208897852,0.97664422,109830.0,109820.0,0.0052]
[1756208898631,1.04668422,109830.0,109820.0,1e-08]
[1756208900281,6.42888225,109830.0,109820.0,1e-08]
[1756208900486,6.61178956,109830.0,109820.0,1e-08]
[1756208900732,0.52213277,109810.0,109800.0,1e-08]
[1756208900936,6.26620939,109810.0,109800.0,1e-08]
[1756208901141,6.26818939,109810.0,109800.0,1e-08]
[1756208901353,6.27340139,109810.0,109800.0,1e-08]
[1756208901626,6.11916139,109810.0,109800.0,1e-08]
[1756208901797,6.27340139,109810.0,109800.0,1e-08]
[1756208902043,0.53034477,109810.0,109800.0,0.00549885]
[1756208902236,0.53034477,109810.0,109800.0,0.02294787]
[1756208902237,1.29262939,109810.0,109800.0,0.02294787]
[1756208902679,1.29462939,109810.0,109800.0,0.02294787]
[1756208903227,1.30753169,109810.0,109800.0,0.02294787]
[1756208904981,1.30951169,109810.0,109800.0,0.02294787]
[1756208905505,1.15325169,109810.0,109800.0,0.02294787]
[1756208905749,1.30753169,109810.0,109800.0,0.02294787]
[1756208906186,1.15325169,109810.0,109800.0,0.02294787]
[1756208906744,0.35952707,109810.0,109800.0,0.11440989]
[1756208906984,0.69952707,109810.0,109800.0,0.11440989]
[1756208907399,0.54524707,109810.0,109800.0,0.11440989]
[1756208907622,0.54524707,109810.0,109800.0,0.72469137]
[1756208907623,0.19034477,109810.0,109800.0,0.72469137]
[1756208907846,0.18734477,109810.0,109800.0,0.11440989]
[1756208908071,0.18834477,109810.0,109800.0,0.11440989]
[1756208908738,0.18834477,109810.0,109800.0,0.11668675]
[1756208908960,0.18313277,109810.0,109800.0,0.11668675]
[1756208912669,0.18313277,109810.0,109800.0,0.29883611]
[1756208912867,0.18313277,109810.0,109800.0,0.11440989]
[1756208913079,0.18313277,109810.0,109800.0,0.11668675]
[1756208913791,0.001,109810.0,109800.0,0.90911759]
[1756208913920,0.18313277,109810.0,109800.0,0.90456387]
[1756208914151,0.001,109810.0,109800.0,0.90456387]
[1756208914362,0.001,109810.0,109800.0,0.93194087]
[1756208914573,0.1821312,109820.0,109810.0,0.01744902]
[1756208914775,0.1821312,109820.0,109810.0,0.11087104]
[1756208915013,0.1821312,109820.0,109810.0,0.29606381]
[1756208915900,0.1821312,109820.0,109810.0,0.11393104]
[1756208916131,0.1821312,109820.0,109810.0,0.11620769]
[1756208916707,0.1821312,109820.0,109810.0,0.11393104]
[1756208917707,0.1821312,109820.0,109810.0,0.11620769]
[1756208918111,0.1821312,109820.0,109810.0,0.11720769]
[1756208918375,0.1821312,109820.0,109810.0,0.29934046]
[1756208918565,0.1821312,109820.0,109810.0,0.29706381]
[1756208918770,0.1821312,109820.0,109810.0,0.11493104]
[1756208918973,0.1821312,109820.0,109810.0,0.11720769]
[1756208919588,0.1821312,109820.0,109810.0,0.27144769]
[1756208919796,0.1821312,109820.0,109810.0,0.26917104]
[1756208920070,0.1821312,109820.0,109810.0,1.05930843]
[1756208923343,0.1821312,109820.0,109810.0,1.07170283]
[1756208923560,0.19120458,109830.0,109820.0,0.19956521]
[1756208923777,0.57383029,109840.0,109820.0,0.19956521]
[1756208923778,0.03971108,109840.0,109830.0,0.01744902]
[1756208923986,0.03971108,109840.0,109830.0,0.11633728]
[1756208924200,0.03971108,109840.0,109830.0,0.27053728]
[1756208924409,0.03971108,109840.0,109830.0,0.26826104]
[1756208925739,0.03971108,109840.0,109830.0,0.45036064]
[1756208926183,0.03971108,109840.0,109830.0,0.26826104]
[1756208927216,0.03971108,109840.0,109830.0,0.11406104]
[1756208927463,0.03971108,109840.0,109830.0,0.26826104]
[1756208929066,0.04169108,109840.0,109830.0,0.26826104]
[1756208929269,0.6496957,109840.0,109830.0,0.10891104]
[1756208929487,0.6516357,109840.0,109830.0,0.10891104]
[1756208930711,0.1820996,109830.0,109820.0,0.17160902]
[1756208930949,0.79010422,109830.0,109820.0,0.10891104]
[1756208931116,0.79208422,109830.0,109820.0,0.10891104]
[1756208931343,0.79204422,109830.0,109820.0,0.10891104]
[1756208932366,0.79204422,109830.0,109820.0,0.11091104]
[1756208933044,0.79204422,109830.0,109820.0,0.11191104]
[1756208933603,0.79204422,109830.0,109820.0,0.11195104]
[1756208935336,0.1820596,109830.0,109820.0,0.11710104]
[1756208935955,0.1840396,109830.0,109820.0,0.11710104]
[1756208936597,0.1840396,109830.0,109820.0,0.11195104]
[1756208936798,0.79204422,109830.0,109820.0,0.26611104]